{"text_format":"1","workbook":"xlsx","n_sheets":2,"sheets":["Init","CompleteDesign"],"not_rendered":{"charts":0,"images":0,"macros":1,"external_links":0,"defined_names":3,"comments":0,"pivot_tables":0},"unopened":[],"bounds":{"document_bytes":16777216,"sheet_cells":100000,"rows_first":2000,"rows_last":500,"rows_between":2000,"halvings":0,"cell_chars":16384,"cell_head_chars":4096},"cells_cut":0,"cells_raw":0,"read":"whole","date_system":"1900"}

{"sheet":"Init","index":0,"n_rows":15,"n_cols":7,"rows_kept":15,"cut":false,"hidden":false,"merged":[]}
[]
[null,"Member"]
[null,"givenName","familyName","email"]
[null,"Pat","Patyk","pp@hobbysta.org"]
[null,"Don","Donski","dd@hobbysta.org"]
[null,"Eve","Evening","ee@hobbysta.org"]
[null,"Tom","Tomas","tt@hobbysta.org"]
[null,"Kim","Kimura","kk@hobbysta.org"]
[]
[null,null,null,null,null,"Hobby"]
[null,null,null,null,null,"title","description"]
[null,null,null,null,null,"Golf Balls","Collect golf balls."]
[null,null,null,null,null,"Coke","Coca Cola memarobilia."]
[null,null,null,null,null,"Post Cards","Collect post cards."]
[null,null,null,null,null,"Stamps","Collect postage stamps."]

{"sheet":"CompleteDesign","index":1,"n_rows":28,"n_cols":16,"rows_kept":28,"cut":false,"hidden":false,"merged":[]}
[]
[null,"Member"]
[null,"n","c","c","c"]
[null,"mid","givenName","familyName","email"]
[null,1,"Pat","Patyk","pp@hobbysta.org",null,{"$f":"sqlInsert($B$2,$B$3:$E$4,B5:E5)","v":"INSERT INTO Member(mid,givenName,familyName,email) VALUES(1,'Pat','Patyk','pp@hobbysta.org');"}]
[null,2,"Don","Donski","dd@hobbysta.org",null,{"$f":"sqlInsert($B$2,$B$3:$E$4,B6:E6)","v":"INSERT INTO Member(mid,givenName,familyName,email) VALUES(2,'Don','Donski','dd@hobbysta.org');"}]
[null,3,"Eve","Evening","ee@hobbysta.org",null,"INSERT INTO Member(mid,givenName,familyName,email) VALUES(3,'Eve','Evening','ee@hobbysta.org');"]
[null,4,"Tom","Tomas","tt@hobbysta.org",null,"INSERT INTO Member(mid,givenName,familyName,email) VALUES(4,'Tom','Tomas','tt@hobbysta.org');"]
[null,5,"Kim","Kimura","kk@hobbysta.org",null,"INSERT INTO Member(mid,givenName,familyName,email) VALUES(5,'Kim','Kimura','kk@hobbysta.org');"]
[]
[null,null,null,null,null,null,"ActiveHobby"]
[null,null,null,null,null,null,"n","n","c","n"]
[null,null,null,null,null,null,"mid","hid","startDate","annualBudget"]
[null,null,null,null,"2016-05-14",null,1,1,{"$f":"TEXT(E14,\"yyy-mm-dd\")","v":"2016-05-14"},500,null,{"$f":"sqlInsert($G$11,$G$12:$J$13,G14:J14)","v":"INSERT INTO ActiveHobby(mid,hid,startDate,annualBudget) VALUES(1,1,'2016-05-14',500);"}]
[null,null,null,null,"2016-07-25",null,1,2,{"$f":"TEXT(E15,\"yyy-mm-dd\")","v":"2016-07-25"},750,null,{"$f":"sqlInsert($G$11,$G$12:$J$13,G15:J15)","v":"INSERT INTO ActiveHobby(mid,hid,startDate,annualBudget) VALUES(1,2,'2016-07-25',750);"}]
[null,null,null,null,"2016-07-28",null,2,1,"2016-07-28",1200,null,"INSERT INTO ActiveHobby(mid,hid,startDate,annualBudget) VALUES(2,1,'2016-07-28',1200);"]
[null,null,null,null,"2016-08-03",null,3,1,"2016-08-03",200,null,"INSERT INTO ActiveHobby(mid,hid,startDate,annualBudget) VALUES(3,1,'2016-08-03',200);"]
[null,null,null,null,"2016-08-22",null,3,2,"2016-08-22",350,null,"INSERT INTO ActiveHobby(mid,hid,startDate,annualBudget) VALUES(3,2,'2016-08-22',350);"]
[null,null,null,null,"2016-09-16",null,3,4,"2016-09-16",800,null,"INSERT INTO ActiveHobby(mid,hid,startDate,annualBudget) VALUES(3,4,'2016-09-16',800);"]
[null,null,null,null,"2016-10-14",null,4,4,"2016-10-14",100,null,"INSERT INTO ActiveHobby(mid,hid,startDate,annualBudget) VALUES(4,4,'2016-10-14',100);"]
[]
[null,null,null,null,"MySQL Date Format is YYYY-MM-DD",null,null,null,null,null,null,"Hobby"]
[null,null,null,null,null,null,null,null,null,null,null,"n","c","c"]
[null,null,null,null,null,null,null,null,null,null,null,"hid","title","description"]
[null,null,null,null,null,null,null,null,null,null,null,1,"Golf Balls","Collect golf balls.",null,{"$f":"sqlInsert($L$22,$L$23:$N$24,L25:N25)","v":"INSERT INTO Hobby(hid,title,description) VALUES(1,'Golf Balls','Collect golf balls.');"}]
[null,null,null,null,null,null,null,null,null,null,null,2,"Coke","Coca Cola memarobilia.",null,{"$f":"sqlInsert($L$22,$L$23:$N$24,L26:N26)","v":"INSERT INTO Hobby(hid,title,description) VALUES(2,'Coke','Coca Cola memarobilia.');"}]
[null,null,null,null,null,null,null,null,null,null,null,3,"Post Cards","Collect post cards.",null,"INSERT INTO Hobby(hid,title,description) VALUES(3,'Post Cards','Collect post cards.');"]
[null,null,null,null,null,null,null,null,null,null,null,4,"Stamps","Collect postage stamps.",null,"INSERT INTO Hobby(hid,title,description) VALUES(4,'Stamps','Collect postage stamps.');"]